[Event "23rd Hoogeveen Open 2019"]
[Site "Hoogeveen"]
[Date "2019.10.26"]
[Round "9.25"]
[White "Hoffman, Ron"]
[Black "Van Dorp, Folke"]
[Result "0-1"]
[ECO "A15"]
[WhiteElo "1991"]
[BlackElo "2086"]
[Annotator "NA"]
[PlyCount "92"]
[EventDate "2019.10.19"]
[EventType "swiss"]
[EventCountry "NED"]
[SourceTitle "playchess.com"]
[Source "ChessBase"]
[SourceQuality "1"]
[TimeControl "40/5400+30:1800+30"]

1. Nf3 {[%emt 0:00:00]} Nf6 {[%emt 0:00:00]} 2. c4 {[%emt 0:00:00]} g6 {[%emt 0:00:00]} 3. b3 {[%emt 0:00:00]} Bg7 {[%emt 0:00:00]} 4. Bb2 {[%emt 0:00:06]} O-O {[%emt 0:01:34]} 5. g3 {[%emt 0:00:18]} d5 {[%emt 0:04:50]} 6. cxd5 {[%emt 0:01:11]} Qxd5 {[%emt 0:00:07]} 7. Bg2 {[%emt 0:02:59]} Nc6 {[%emt 0:07:01]} 8. O-O {[%emt 0:09:32]} Qh5 $11 {[%emt 0:00:44]} 9. d3 {[%emt 0:04:43]} Bh3 {[%emt 0:03:33]} 10. Nbd2 {[%emt 0:00:52]} Rad8 {[%emt 0:07:02]} 11. Rc1 {[%emt 0:03:35]} e5 {[%emt 0:03:05]} 12. Qc2 {[%emt 0:10:08]} Ng4 {[%emt 0:06:24]} 13. Qc4 {[%emt 0:11:08]} Bxg2 {[%emt 0:02:41]} 14. Kxg2 {[%emt 0:02:33]} e4 {[%emt 0:00:11]} 15. Bxg7 {[%emt 0:16:16]} exf3+ {[%emt 0:00:27]} 16. Nxf3 {[%emt 0:00:08]} Kxg7 {[%emt 0:00:10]} 17. h3 {[%emt 0:00:39]} Nge5 {[%emt 0:13:11]} 18. Qc3 {[%emt 0:08:47]} Kg8 {[%emt 0:05:05]} 19. Nxe5 {[%emt 0:16:46]} Nxe5 {[%emt 0:06:15]} 20. Qxc7 {[%emt 0:01:01]} Qxe2 {[%emt 0:00:24]} 21. Qxb7 {[%emt 0:04:20]} Nxd3 {[%emt 0:00:24]} 22. Ra1 {[%emt 0:01:37]} a5 {[%emt 0:01:33]} 23. Qf3 {[%emt 0:02:59]} Qxf3+ {[%emt 0:04:49]} 24. Kxf3 {[%emt 0:00:01]} Nb4 {[%emt 0:00:12]} 25. Rfc1 {[%emt 0:02:04]} Rd2 {[%emt 0:00:33]} 26. Rc5 {[%emt 0:00:44]} Rxf2+ {[%emt 0:00:48]} 27. Kxf2 {[%emt 0:00:18]} Nd3+ {[%emt 0:00:05]} 28. Ke3 {[%emt 0:00:01]} Nxc5 {[%emt 0:00:07]} 29. Kd4 {[%emt 0:00:19]} Ne6+ {[%emt 0:01:14]} 30. Kc4 {[%emt 0:00:02]} Rd8 {[%emt 0:01:33]} 31. Re1 {[%emt 0:00:51]} Rd2 {[%emt 0:01:34]} 32. a3 {[%emt 0:00:52]} Rc2+ {[%emt 0:00:08]} 33. Kb5 {[%emt 0:00:52]} Rc3 {[%emt 0:01:05]} 34. b4 {[%emt 0:00:40]} axb4 {[%emt 0:04:18]} 35. Kxb4 {[%emt 0:00:02]} Rxg3 {[%emt 0:05:28]} 36. a4 {[%emt 0:00:45]} Rxh3 {[%emt 0:00:21]} 37. a5 {[%emt 0:00:09]} Rh2 {[%emt 0:00:09]} 38. Ra1 {[%emt 0:00:16]} Nc7 {[%emt 0:00:08]} 39. Rc1 {[%emt 0:00:28]} Nd5+ {[%emt 0:00:53]} 40. Kb5 {[%emt 0:00:43]} Rb2+ {[%emt 0:00:30]} 41. Ka4 {[%emt 0:05:04]} Nb6+ {[%emt 0:02:52]} 42. Ka3 {[%emt 0:02:10]} Rb5 {[%emt 0:00:08]} 43. a6 {[%emt 0:01:19]} Ra5+ {[%emt 0:00:06]} 44. Kb4 {[%emt 0:00:06]} Rxa6 {[%emt 0:00:08]} 45. Kb5 {[%emt 0:00:04]} Ra2 {[%emt 0:00:14]} 46. Kxb6 {[%emt 0:00:07]} Rd2 {[%emt 0:00:08]} 0-1

[Event "23rd Hoogeveen Open 2019"]
[Site "Hoogeveen"]
[Date "2019.10.26"]
[Round "9.26"]
[White "Pekin, Tolgay"]
[Black "Barthel, Ansgar"]
[Result "1-0"]
[ECO "B04"]
[WhiteElo "2083"]
[BlackElo "2037"]
[Annotator "NA"]
[PlyCount "44"]
[EventDate "2019.10.19"]
[EventType "swiss"]
[EventCountry "NED"]
[SourceTitle "playchess.com"]
[Source "ChessBase"]
[SourceQuality "1"]
[TimeControl "40/5400+30:1800+30"]

1. e4 {[%emt 0:00:00]} Nf6 {[%emt 0:00:00]} 2. e5 {[%emt 0:00:00]} Nd5 {[%emt 0:00:00]} 3. d4 {[%emt 0:00:00]} d6 {[%emt 0:00:00]} 4. Nf3 {[%emt 0:00:00]} dxe5 {[%emt 0:00:00]} 5. Nxe5 {[%emt 0:00:20]} c6 {[%emt 0:00:00]} 6. Be2 {[%emt 0:02:11]} Bf5 {[%emt 0:00:01]} 7. O-O {[%emt 0:00:29]} Nd7 {[%emt 0:00:04]} 8. Ng4 {[%emt 0:01:58]} e6 {[%emt 0:00:41]} 9. c4 {[%emt 0:02:16]} N5f6 {[%emt 0:00:31]} 10. Ne3 {[%emt 0:00:51]} Bg6 {[%emt 0:05:46]} 11. Nc3 {[%emt 0:03:45]} Bd6 {[%emt 0:31:23]} 12. f4 {[%emt 0:18:07]} O-O {[%emt 0:01:46]} 13. g3 $11 {[%emt 0:03:24]} Ne4 {[%emt 0:02:59]} 14. f5 {[%emt 0:06:56]} exf5 {[%emt 0:00:06]} 15. Nxf5 {[%emt 0:00:09]} Ndf6 {[%emt 0:11:13]} 16. Bd3 {[%emt 0:06:45]} Re8 {[%emt 0:00:30]} 17. Qc2 {[%emt 0:05:23]} Bxf5 {[%emt 0:06:57]} 18. Rxf5 {[%emt 0:01:15]} Bf8 {[%emt 0:00:22]} 19. Ne2 {[%emt 0:25:41]} Qd7 {[%emt 0:07:50]} 20. Re5 {[%emt 0:04:28]} Rxe5 {[%emt 0:11:57]} 21. dxe5 {[%emt 0:00:04]} Nc5 {[%emt 0:00:05]} 22. Bf5 {[%emt 0:01:33]} Qe7 {[%emt 0:00:45]} 1-0

[Event "23rd Hoogeveen Open 2019"]
[Site "Hoogeveen"]
[Date "2019.10.26"]
[Round "9.27"]
[White "Fehr, Axel"]
[Black "Elgersma, Simon"]
[Result "1/2-1/2"]
[ECO "B12"]
[WhiteElo "2045"]
[BlackElo "2111"]
[Annotator "NA"]
[PlyCount "62"]
[EventDate "2019.10.19"]
[EventType "swiss"]
[EventCountry "NED"]
[SourceTitle "playchess.com"]
[Source "ChessBase"]
[SourceQuality "1"]
[TimeControl "40/5400+30:1800+30"]

1. e4 {[%emt 0:00:02]} c6 {[%emt 0:00:25]} 2. d4 {[%emt 0:00:30]} d5 {[%emt 0:00:00]} 3. e5 {[%emt 0:00:05]} Bf5 {[%emt 0:00:00]} 4. Nf3 {[%emt 0:00:04]} e6 {[%emt 0:00:00]} 5. Be2 {[%emt 0:00:10]} Ne7 {[%emt 0:00:33]} 6. Nbd2 {[%emt 0:02:03]} Ng6 {[%emt 0:02:18]} (6... c5 $5) 7. Nb3 {[%emt 0:01:28]} Nd7 {[%emt 0:04:40]} 8. Be3 {[%emt 0:00:20]} f6 {[%emt 0:03:08]} 9. exf6 {[%emt 0:04:44]} Qxf6 {[%emt 0:03:48]} 10. Qd2 {[%emt 0:06:47]} Bd6 {[%emt 0:04:51]} 11. h4 {[%emt 0:03:41]} Bg4 $15 {[%emt 0:11:02]} 12. Ng5 {[%emt 0:06:00]} Bxe2 {[%emt 0:05:22]} 13. Qxe2 {[%emt 0:00:14]} h6 {[%emt 0:05:14]} 14. Nf3 {[%emt 0:02:14]} Nf4 {[%emt 0:00:43]} 15. Bxf4 {[%emt 0:00:07]} Bxf4 {[%emt 0:00:28]} 16. g3 {[%emt 0:02:04]} Bd6 {[%emt 0:02:59]} 17. Nh2 {[%emt 0:05:34]} O-O-O {[%emt 0:08:52]} 18. O-O-O {[%emt 0:01:16]} e5 {[%emt 0:14:19]} 19. Ng4 {[%emt 0:02:09]} Qe7 {[%emt 0:02:24]} 20. Nxe5 {[%emt 0:05:07]} Nxe5 {[%emt 0:00:46]} 21. dxe5 {[%emt 0:12:05]} Bxe5 {[%emt 0:01:14]} 22. Rhe1 {[%emt 0:02:42]} Rhe8 {[%emt 0:09:14]} 23. Qg4+ {[%emt 0:04:57]} Qd7 {[%emt 0:03:59]} 24. Qxd7+ {[%emt 0:05:45]} Kxd7 {[%emt 0:00:07]} 25. c4 {[%emt 0:00:31]} Kc7 {[%emt 0:01:47]} 26. cxd5 {[%emt 0:00:49]} Rxd5 {[%emt 0:00:45]} 27. Rxd5 {[%emt 0:01:35]} cxd5 {[%emt 0:00:07]} 28. Kc2 {[%emt 0:02:31]} Re7 {[%emt 0:04:02]} 29. f4 {[%emt 0:08:18]} Bf6 {[%emt 0:00:33]} 30. Rxe7+ {[%emt 0:00:05]} Bxe7 {[%emt 0:00:12]} 31. h5 {[%emt 0:04:49]} Bf6 {[%emt 0:02:10]} 1/2-1/2

[Event "23rd Hoogeveen Open 2019"]
[Site "Hoogeveen"]
[Date "2019.10.26"]
[Round "9.28"]
[White "Taams, Sander"]
[Black "Slagboom, Leandro"]
[Result "1/2-1/2"]
[ECO "B90"]
[WhiteElo "2094"]
[BlackElo "1954"]
[Annotator "NA"]
[PlyCount "99"]
[EventDate "2019.10.19"]
[EventType "swiss"]
[EventCountry "NED"]
[SourceTitle "playchess.com"]
[Source "ChessBase"]
[SourceQuality "1"]
[TimeControl "40/5400+30:1800+30"]

1. e4 {[%emt 0:00:00]} c5 {[%emt 0:00:00]} 2. Nf3 {[%emt 0:00:00]} d6 {[%emt 0:00:00]} 3. d4 {[%emt 0:00:00]} cxd4 {[%emt 0:00:00]} 4. Nxd4 {[%emt 0:00:00]} Nf6 {[%emt 0:00:00]} 5. Nc3 {[%emt 0:00:04]} a6 {[%emt 0:00:00]} 6. Be3 {[%emt 0:00:06]} e5 {[%emt 0:00:01]} 7. Nb3 {[%emt 0:00:05]} Be6 {[%emt 0:00:06]} 8. f3 {[%emt 0:00:25]} h5 {[%emt 0:00:06]} 9. Qd2 {[%emt 0:04:36]} Nbd7 {[%emt 0:00:12]} 10. O-O-O {[%emt 0:03:18]} Be7 {[%emt 0:01:15]} 11. Qf2 {[%emt 0:06:35]} b5 {[%emt 0:02:24]} 12. Kb1 {[%emt 0:04:19]} Qc7 {[%emt 0:05:10]} 13. Be2 {[%emt 0:06:45]} (13. Nd5 $11 Nxd5 14. exd5) 13... b4 {[%emt 0:05:50]} 14. Nd5 {[%emt 0:01:09]} Nxd5 {[%emt 0:00:56]} 15. exd5 {[%emt 0:00:10]} Bf5 {[%emt 0:00:14]} 16. Bd3 {[%emt 0:00:39]} Bxd3 {[%emt 0:00:13]} 17. Rxd3 {[%emt 0:00:06]} a5 {[%emt 0:05:02]} 18. Nd2 {[%emt 0:02:53]} f5 $15 {[%emt 0:06:25]} 19. Qe2 {[%emt 0:09:08]} Nc5 {[%emt 0:24:20]} 20. Bxc5 {[%emt 0:00:35]} Qxc5 {[%emt 0:00:14]} 21. b3 {[%emt 0:06:02]} O-O {[%emt 0:07:56]} 22. Nc4 {[%emt 0:05:18]} a4 {[%emt 0:02:52]} 23. Qe3 {[%emt 0:03:30]} axb3 {[%emt 0:04:40]} 24. cxb3 {[%emt 0:00:17]} Qxe3 {[%emt 0:02:40]} 25. Rxe3 {[%emt 0:00:17]} Ra6 {[%emt 0:01:33]} 26. Re2 {[%emt 0:01:16]} g6 {[%emt 0:05:49]} 27. Rc1 {[%emt 0:05:10]} Rfa8 {[%emt 0:04:17]} 28. h3 {[%emt 0:01:02]} h4 {[%emt 0:01:08]} 29. Rg1 {[%emt 0:01:19]} f4 {[%emt 0:03:00]} 30. Rd1 {[%emt 0:01:35]} Kf7 {[%emt 0:01:31]} 31. Rc2 {[%emt 0:00:09]} R8a7 {[%emt 0:01:22]} 32. Nd2 {[%emt 0:01:28]} Ke8 {[%emt 0:04:07]} 33. Ne4 {[%emt 0:00:17]} Kd7 {[%emt 0:00:47]} 34. Rdd2 {[%emt 0:00:19]} Kd8 {[%emt 0:03:23]} 35. Rc4 {[%emt 0:00:45]} Rb6 {[%emt 0:01:48]} 36. Rdc2 {[%emt 0:13:35]} Kd7 {[%emt 0:00:45]} 37. Rc8 {[%emt 0:00:29]} Rb5 {[%emt 0:04:15]} 38. Rg8 {[%emt 0:00:10]} Rxd5 {[%emt 0:00:58]} 39. Rxg6 {[%emt 0:00:17]} Rd1+ {[%emt 0:03:01]} 40. Kb2 {[%emt 0:00:09]} d5 {[%emt 0:01:04]} 41. Nf2 {[%emt 0:33:41]} Re1 {[%emt 0:05:44]} 42. Rd2 {[%emt 0:00:00]} Kc7 {[%emt 0:07:33]} 43. Nd3 {[%emt 0:00:00]} Re3 {[%emt 0:00:17]} 44. Rg7 {[%emt 0:00:00]} Kb6 {[%emt 0:01:46]} 45. Nc1 {[%emt 0:00:00]} Rd7 {[%emt 0:05:12]} 46. Re2 {[%emt 0:00:00]} Rxe2+ {[%emt 0:01:41]} 47. Nxe2 {[%emt 0:03:25]} d4 48. Kc1 {[%emt 0:00:05]} d3 {[%emt 0:00:02]} 49. Ng1 d2+ {[%emt 0:00:02]} 50. Kd1 {[%emt 0:23:32]} 1/2-1/2

[Event "23rd Hoogeveen Open 2019"]
[Site "Hoogeveen"]
[Date "2019.10.26"]
[Round "9.29"]
[White "Van der Hagen, Loek"]
[Black "Stavast, Dick"]
[Result "1/2-1/2"]
[ECO "C41"]
[WhiteElo "1983"]
[BlackElo "2068"]
[Annotator "NA"]
[PlyCount "119"]
[EventDate "2019.10.19"]
[EventType "swiss"]
[EventCountry "NED"]
[SourceTitle "playchess.com"]
[Source "ChessBase"]
[SourceQuality "1"]
[TimeControl "40/5400+30:1800+30"]

1. e4 {[%emt 0:00:00]} d6 {[%emt 0:00:00]} 2. d4 {[%emt 0:00:00]} Nf6 {[%emt 0:00:00]} 3. Nc3 {[%emt 0:00:00]} e5 {[%emt 0:00:02]} 4. Nf3 {[%emt 0:00:00]} Nbd7 {[%emt 0:00:05]} 5. g4 {[%emt 0:00:00]} g6 {[%emt 0:00:38]} 6. g5 {[%emt 0:00:05]} Nh5 {[%emt 0:00:06]} 7. Be3 {[%emt 0:00:10]} Bg7 {[%emt 0:05:25]} 8. Be2 {[%emt 0:00:53]} c6 {[%emt 0:01:49]} 9. Qd2 {[%emt 0:00:40]} a6 {[%emt 0:08:37]} 10. O-O-O {[%emt 0:00:57]} b5 {[%emt 0:10:42]} 11. d5 $2 {[%emt 0:15:38]} (11. h4 $16) 11... c5 {[%emt 0:00:32]} 12. Rdg1 {[%emt 0:02:42]} Qa5 {[%emt 0:03:54]} 13. Kb1 {[%emt 0:00:06]} Nb6 {[%emt 0:02:18]} 14. Qc1 {[%emt 0:09:36]} b4 {[%emt 0:05:04]} 15. Nd1 {[%emt 0:00:19]} Nf4 $16 {[%emt 0:02:56]} (15... O-O $14) 16. Bxf4 {[%emt 0:04:00]} exf4 {[%emt 0:00:01]} 17. Qxf4 {[%emt 0:00:49]} O-O {[%emt 0:00:35]} 18. Qxd6 {[%emt 0:12:48]} Bd7 {[%emt 0:00:55]} 19. Nd2 {[%emt 0:02:11]} Ba4 {[%emt 0:01:34]} 20. Nb3 {[%emt 0:02:38]} Bxb3 {[%emt 0:00:09]} 21. cxb3 {[%emt 0:02:14]} Rfe8 {[%emt 0:07:37]} 22. Qf4 {[%emt 0:08:39]} Nxd5 {[%emt 0:04:43]} 23. Qf3 {[%emt 0:08:08]} Nc7 {[%emt 0:07:05]} 24. Bc4 {[%emt 0:02:03]} Ne6 {[%emt 0:02:09]} 25. Ne3 {[%emt 0:02:19]} Qc7 {[%emt 0:00:10]} 26. Bxe6 {[%emt 0:02:50]} Rxe6 {[%emt 0:01:21]} 27. Nc4 {[%emt 0:01:08]} Rae8 {[%emt 0:01:00]} 28. Qg3 {[%emt 0:02:32]} Qe7 {[%emt 0:15:36]} 29. f3 {[%emt 0:01:12]} f5 {[%emt 0:05:05]} 30. exf5 {[%emt 0:02:06]} gxf5 {[%emt 0:00:02]} 31. h4 {[%emt 0:02:15]} Re2 {[%emt 0:01:47]} 32. h5 {[%emt 0:06:48]} Bd4 {[%emt 0:04:28]} 33. Rd1 {[%emt 0:04:20]} Qe6 {[%emt 0:04:31]} 34. g6 {[%emt 0:02:06]} h6 {[%emt 0:00:13]} 35. Rh2 {[%emt 0:01:23]} f4 {[%emt 0:04:55]} 36. Qxf4 {[%emt 0:02:28]} Rxh2 {[%emt 0:00:02]} 37. Qxh2 {[%emt 0:00:10]} Qf5+ {[%emt 0:00:06]} 38. Ka1 {[%emt 0:01:30]} Qxf3 {[%emt 0:00:06]} 39. Rc1 {[%emt 0:00:55]} Re2 {[%emt 0:02:16]} 40. Qb8+ {[%emt 0:00:17]} Kg7 {[%emt 0:00:55]} 41. Qa7+ {[%emt 0:09:32]} Kf8 {[%emt 0:00:25]} 42. Qxa6 {[%emt 0:02:39]} Qf4 {[%emt 0:12:39]} 43. Qa8+ {[%emt 0:02:17]} Kg7 {[%emt 0:01:14]} 44. Qb7+ {[%emt 0:00:11]} Kg8 {[%emt 0:03:44]} 45. Rd1 {[%emt 0:06:22]} Kf8 {[%emt 0:02:24]} 46. Qc8+ {[%emt 0:01:40]} Kg7 {[%emt 0:02:03]} 47. Qd7+ {[%emt 0:00:01]} Kf6 {[%emt 0:00:38]} 48. g7 {[%emt 0:08:11]} Qg3 {[%emt 0:02:37]} 49. Rf1+ {[%emt 0:01:27]} Rf2 {[%emt 0:00:08]} 50. g8=N+ {[%emt 0:02:04]} Qxg8 {[%emt 0:00:24]} 51. Qd6+ {[%emt 0:00:36]} Kf5 {[%emt 0:01:33]} 52. Rxf2+ {[%emt 0:00:57]} Bxf2 {[%emt 0:00:05]} 53. Qe5+ {[%emt 0:00:53]} Kg4 {[%emt 0:00:28]} 54. Qe4+ {[%emt 0:00:25]} Kxh5 {[%emt 0:01:50]} 55. Qh1+ {[%emt 0:00:43]} Bh4 {[%emt 0:00:37]} 56. Ne3 {[%emt 0:00:28]} Qg3 {[%emt 0:01:45]} 57. Qd1+ {[%emt 0:00:19]} Kg6 {[%emt 0:03:19]} 58. Qd3+ {[%emt 0:00:37]} Kf6 {[%emt 0:00:45]} 59. Qd8+ {[%emt 0:00:37]} Ke6 {[%emt 0:00:38]} 60. Qd5+ {[%emt 0:00:11] Ke5} 1/2-1/2

[Event "23rd Hoogeveen Open 2019"]
[Site "Hoogeveen"]
[Date "2019.10.26"]
[Round "9.30"]
[White "Garcia Morales, Ivette Ale"]
[Black "Achuthan, Dylan"]
[Result "1-0"]
[ECO "A45"]
[WhiteElo "2013"]
[BlackElo "1865"]
[Annotator "NA"]
[PlyCount "81"]
[EventDate "2019.10.19"]
[EventType "swiss"]
[EventCountry "NED"]
[SourceTitle "playchess.com"]
[Source "ChessBase"]
[SourceQuality "1"]
[TimeControl "40/5400+30:1800+30"]

1. d4 {[%emt 0:00:00]} Nf6 {[%emt 0:00:00]} 2. Bg5 {[%emt 0:00:00]} g6 {[%emt 0:01:22]} 3. Bxf6 {[%emt 0:00:00]} exf6 {[%emt 0:00:05]} 4. e3 {[%emt 0:00:00]} Bg7 {[%emt 0:00:11]} 5. Ne2 {[%emt 0:00:02]} d5 {[%emt 0:00:36]} 6. Nf4 {[%emt 0:00:09]} Be6 {[%emt 0:00:51]} 7. c4 {[%emt 0:00:47]} c6 {[%emt 0:04:08]} 8. Nc3 {[%emt 0:08:38]} dxc4 {[%emt 0:18:58]} 9. Nxe6 {[%emt 0:03:26]} fxe6 {[%emt 0:00:13]} 10. Bxc4 {[%emt 0:00:20]} Qe7 $16 {[%emt 0:00:24]} 11. Qb3 {[%emt 0:00:52]} Kf7 {[%emt 0:00:28]} 12. d5 {[%emt 0:08:16]} Re8 {[%emt 0:06:58]} 13. dxe6+ {[%emt 0:01:04]} Kf8 {[%emt 0:02:58]} 14. Rd1 {[%emt 0:20:21]} b5 {[%emt 0:07:33]} 15. Nxb5 {[%emt 0:16:15]} cxb5 {[%emt 0:03:18]} 16. Bd5 {[%emt 0:02:11]} Na6 {[%emt 0:03:08]} 17. Bxa8 {[%emt 0:00:07]} Rxa8 {[%emt 0:00:36]} 18. Rd7 {[%emt 0:03:30]} Qb4+ {[%emt 0:00:22]} 19. Qxb4+ {[%emt 0:00:41]} Nxb4 {[%emt 0:00:02]} 20. O-O {[%emt 0:06:53]} Nc6 {[%emt 0:17:01]} 21. Rc1 {[%emt 0:08:39]} Ne5 {[%emt 0:03:28]} 22. Rb7 {[%emt 0:00:31]} Re8 {[%emt 0:02:19]} 23. Rcc7 {[%emt 0:03:24]} Bh8 {[%emt 0:00:16]} 24. Rxh7 {[%emt 0:00:17]} Kg8 {[%emt 0:00:35]} 25. Rhc7 {[%emt 0:02:44]} a6 {[%emt 0:00:49]} 26. f4 {[%emt 0:01:29]} Nc4 {[%emt 0:00:32]} 27. f5 {[%emt 0:08:35]} gxf5 {[%emt 0:00:46]} 28. h4 {[%emt 0:01:55]} Nxe3 {[%emt 0:01:09]} 29. h5 {[%emt 0:00:19]} Ng4 {[%emt 0:00:01]} 30. g3 {[%emt 0:01:36]} f4 {[%emt 0:02:03]} 31. Re7 {[%emt 0:00:36]} Rc8 {[%emt 0:01:07]} 32. Rec7 {[%emt 0:00:17]} Re8 {[%emt 0:01:16]} 33. Re7 {[%emt 0:00:08]} Rc8 {[%emt 0:00:09]} 34. Rbc7 {[%emt 0:00:19]} Rd8 {[%emt 0:00:01]} 35. gxf4 {[%emt 0:00:43]} f5 {[%emt 0:01:20]} 36. Rcd7 {[%emt 0:00:15]} Rc8 {[%emt 0:00:10]} 37. h6 {[%emt 0:01:20]} Nxh6 {[%emt 0:01:30]} 38. Rh7 {[%emt 0:00:06]} Ng4 {[%emt 0:00:10]} 39. Rh5 {[%emt 0:00:58]} Rc1+ {[%emt 0:01:28]} 40. Kg2 {[%emt 0:00:15]} Rc2+ {[%emt 0:00:26]} 41. Kg3 {[%emt 0:30:37]} 1-0

[Event "23rd Hoogeveen Open 2019"]
[Site "Hoogeveen"]
[Date "2019.10.26"]
[Round "9.31"]
[White "Shakhverdian, William"]
[Black "Tabak, Stefan"]
[Result "0-1"]
[ECO "A88"]
[WhiteElo "2109"]
[BlackElo "2181"]
[Annotator "NA"]
[PlyCount "50"]
[EventDate "2019.10.19"]
[EventType "swiss"]
[EventCountry "NED"]
[SourceTitle "playchess.com"]
[Source "ChessBase"]
[SourceQuality "1"]
[TimeControl "40/5400+30:1800+30"]

1. d4 {[%emt 0:00:00]} f5 {[%emt 0:00:00]} 2. g3 {[%emt 0:00:00]} Nf6 {[%emt 0:00:00]} 3. Bg2 {[%emt 0:00:14]} g6 {[%emt 0:00:00]} 4. c4 {[%emt 0:01:26]} Bg7 {[%emt 0:00:00]} 5. Nf3 {[%emt 0:00:13]} d6 {[%emt 0:00:04]} 6. O-O {[%emt 0:00:32]} O-O {[%emt 0:00:08]} 7. Nc3 {[%emt 0:02:03]} c6 {[%emt 0:00:13]} 8. Qc2 {[%emt 0:04:57]} Qe8 {[%emt 0:01:06]} 9. b3 {[%emt 0:02:00]} h6 {[%emt 0:00:51]} 10. Ba3 {[%emt 0:00:23]} g5 {[%emt 0:01:23]} 11. Rad1 {[%emt 0:05:30]} Qh5 {[%emt 0:06:25]} 12. e4 {[%emt 0:02:26]} (12. Rfe1 $14) 12... fxe4 {[%emt 0:04:09]} 13. Nxe4 {[%emt 0:06:00]} Bg4 {[%emt 0:00:59]} 14. Ned2 {[%emt 0:00:42]} Nbd7 {[%emt 0:00:29]} 15. Rde1 {[%emt 0:00:19]} Rf7 {[%emt 0:00:15]} 16. Re3 {[%emt 0:01:23]} Nf8 $14 {[%emt 0:11:05]} 17. Rfe1 {[%emt 0:00:59]} Ng6 {[%emt 0:05:40]} 18. h3 {[%emt 0:05:54]} Bxh3 {[%emt 0:09:34]} 19. Bxh3 {[%emt 0:00:22]} g4 {[%emt 0:00:03]} 20. Bg2 {[%emt 0:00:37]} gxf3 {[%emt 0:00:05]} 21. Bxf3 {[%emt 0:01:38]} Ng4 {[%emt 0:01:37]} 22. Bxg4 {[%emt 0:02:04]} Qxg4 {[%emt 0:00:09]} 23. Qe4 {[%emt 0:01:59]} Nf4 {[%emt 0:19:16]} 24. Rf3 {[%emt 0:04:16]} Raf8 {[%emt 0:01:14]} 25. Ree3 {[%emt 0:00:15]} Bxd4 {[%emt 0:04:18]} 0-1

[Event "23rd Hoogeveen Open 2019"]
[Site "Hoogeveen"]
[Date "2019.10.26"]
[Round "9.32"]
[White "Noordenbos, Daan"]
[Black "Merkon, Oseb"]
[Result "1/2-1/2"]
[ECO "B33"]
[WhiteElo "2133"]
[BlackElo "1930"]
[Annotator "NA"]
[PlyCount "118"]
[EventDate "2019.10.19"]
[EventType "swiss"]
[EventCountry "NED"]
[SourceTitle "playchess.com"]
[Source "ChessBase"]
[SourceQuality "1"]
[TimeControl "40/5400+30:1800+30"]

1. e4 {[%emt 0:00:00]} c5 {[%emt 0:00:00]} 2. Nf3 {[%emt 0:00:00]} Nc6 {[%emt 0:00:00]} 3. d4 {[%emt 0:00:00]} cxd4 {[%emt 0:00:00]} 4. Nxd4 {[%emt 0:00:06]} Nf6 {[%emt 0:00:00]} 5. Nc3 {[%emt 0:00:09]} e5 {[%emt 0:00:00]} 6. Ndb5 {[%emt 0:00:15]} d6 {[%emt 0:00:00]} 7. Nd5 {[%emt 0:00:12]} Nxd5 {[%emt 0:00:00]} 8. exd5 {[%emt 0:00:09]} Nb8 {[%emt 0:00:00]} 9. a4 {[%emt 0:00:09]} Be7 {[%emt 0:05:07]} 10. Be3 {[%emt 0:00:26]} a6 {[%emt 0:05:22]} 11. Na3 {[%emt 0:01:15]} O-O {[%emt 0:02:43]} 12. Nc4 {[%emt 0:00:47]} Nd7 {[%emt 0:00:26]} 13. Be2 {[%emt 0:00:10]} f5 {[%emt 0:00:49]} 14. f3 {[%emt 0:04:30]} Qe8 {[%emt 0:21:09]} 15. f4 {[%emt 0:02:09]} e4 {[%emt 0:07:09]} 16. O-O $14 {[%emt 0:05:28]} Nf6 {[%emt 0:13:10]} 17. Nb6 {[%emt 0:00:56]} Rb8 {[%emt 0:00:25]} 18. a5 {[%emt 0:04:08]} Ng4 {[%emt 0:05:26]} 19. Bd4 {[%emt 0:03:21]} Bf6 {[%emt 0:02:52]} 20. Ra3 {[%emt 0:02:49]} Bxd4+ {[%emt 0:01:40]} 21. Qxd4 {[%emt 0:00:11]} Nf6 {[%emt 0:02:28]} 22. b4 {[%emt 0:03:37]} Nd7 {[%emt 0:05:22]} 23. Nc4 {[%emt 0:03:27]} Qe7 {[%emt 0:06:14]} 24. Rg3 {[%emt 0:01:03]} Nf6 {[%emt 0:01:05]} 25. Nb6 {[%emt 0:01:53]} Nd7 {[%emt 0:02:09]} 26. c4 {[%emt 0:02:34]} Qf6 {[%emt 0:01:47]} 27. Qxf6 {[%emt 0:02:03]} Rxf6 {[%emt 0:00:32]} 28. Kf2 {[%emt 0:00:18]} Kf7 {[%emt 0:02:57]} 29. Ke3 {[%emt 0:01:21]} g6 {[%emt 0:00:45]} 30. Rh3 {[%emt 0:00:39]} h5 {[%emt 0:02:14]} 31. Kd4 {[%emt 0:01:39]} Ke7 {[%emt 0:02:27]} 32. Rh4 {[%emt 0:09:38]} Nxb6 {[%emt 0:03:48]} 33. axb6 {[%emt 0:00:08]} Bd7 {[%emt 0:00:09]} 34. Rh3 {[%emt 0:01:29]} Rff8 {[%emt 0:01:06]} 35. Rg3 {[%emt 0:01:01]} Kf6 {[%emt 0:01:59]} 36. h4 {[%emt 0:02:09]} Rfe8 {[%emt 0:02:22]} 37. Ra1 {[%emt 0:02:20]} Rbd8 {[%emt 0:00:47]} 38. Ra5 {[%emt 0:00:57]} Re7 {[%emt 0:03:27]} 39. Re3 {[%emt 0:00:10]} Be8 {[%emt 0:00:47]} 40. Bd1 {[%emt 0:00:55]} Rc8 {[%emt 0:00:29]} 41. Bb3 {[%emt 0:30:34]} Rd8 {[%emt 0:01:11]} 42. Rc3 {[%emt 0:00:00]} Bd7 {[%emt 0:01:08]} 43. Ke3 {[%emt 0:00:00]} Ree8 {[%emt 0:03:35]} 44. Rc2 {[%emt 0:00:00]} Ke7 {[%emt 0:01:25]} 45. Ra1 {[%emt 0:00:00]} Rc8 {[%emt 0:03:27]} 46. Kd4 {[%emt 0:00:00]} Kf6 {[%emt 0:00:14]} 47. Rc3 {[%emt 0:00:00]} e3 {[%emt 0:00:43]} 48. Rxe3 {[%emt 0:00:00]} Rxe3 {[%emt 0:00:32]} 49. Kxe3 {[%emt 0:00:00]} Re8+ {[%emt 0:00:01]} 50. Kd3 {[%emt 0:00:00]} Re4 {[%emt 0:00:05]} 51. g3 {[%emt 0:00:00]} Ke7 {[%emt 0:01:02]} 52. Rf1 {[%emt 0:00:00]} Kf6 {[%emt 0:00:40]} 53. Bd1 {[%emt 0:00:00]} Rxc4 {[%emt 0:01:11]} 54. Kxc4 {[%emt 0:00:00]} Bb5+ {[%emt 0:00:39]} 55. Kd4 {[%emt 0:00:00]} Bxf1 {[%emt 0:00:10]} 56. Ba4 {[%emt 0:00:00]} Bb5 {[%emt 0:00:13]} 57. Bb3 {[%emt 0:00:00]} Bf1 {[%emt 0:00:22]} 58. Kc3 {[%emt 0:00:00]} Bb5 {[%emt 0:00:16]} 59. Kb2 {[%emt 0:00:00]} Ke7 {[%emt 0:00:12]} 1/2-1/2